[Event "Live Chess"]
[Site "Chess.com"]
[Date "2023.05.20"]
[Round "-"]
[White "chekagain"]
[Black "BostonStrangler"]
[Result "0-1"]
[WhiteElo "814"]
[BlackElo "2043"]
[TimeControl "300"]
[EndTime "13:14:41 PDT"]
[Termination "BostonStrangler won by checkmate"]

1. e4 {[%clk 0:04:54.9]} 1... c5 {[%clk 0:04:58.9]} 2. Nf3 {[%clk 0:04:53.9]}
2... g6 {[%clk 0:04:58.3]} 3. d4 {[%clk 0:04:51.9]} 3... cxd4 {[%clk 0:04:57.9]}
4. Nxd4 {[%clk 0:04:50.2]} 4... Nc6 {[%clk 0:04:56.5]} 5. Nf3 {[%clk 0:04:49.1]}
5... Bg7 {[%clk 0:04:54.6]} 6. Bb5 {[%clk 0:04:44.8]} 6... Nf6 {[%clk 0:04:53]}
7. Nc3 {[%clk 0:04:43.6]} 7... O-O {[%clk 0:04:51.3]} 8. Be3 {[%clk 0:04:41.4]}
8... Nxe4 {[%clk 0:04:44.6]} 9. Nxe4 {[%clk 0:04:38.7]} 9... Qa5+ {[%clk
0:04:42.8]} 10. Nc3 {[%clk 0:04:33.4]} 10... Bxc3+ {[%clk 0:04:41.4]} 11. bxc3
{[%clk 0:04:32.8]} 11... Qxb5 {[%clk 0:04:40.6]} 12. Nd4 {[%clk 0:04:21.8]}
12... Qc4 {[%clk 0:04:38.6]} 13. Nxc6 {[%clk 0:04:11]} 13... dxc6 {[%clk
0:04:35.7]} 14. Qd4 {[%clk 0:04:08.6]} 14... Be6 {[%clk 0:04:31.2]} 15. Bh6
{[%clk 0:04:05.7]} 15... Qxd4 {[%clk 0:04:28.1]} 16. cxd4 {[%clk 0:04:04.4]}
16... Rfd8 {[%clk 0:04:25.2]} 17. O-O-O {[%clk 0:04:02.2]} 17... Rd5 {[%clk
0:04:22.3]} 18. a3 {[%clk 0:03:58.1]} 18... a5 {[%clk 0:04:20.1]} 19. Kb2 {[%clk
0:03:56.5]} 19... a4 {[%clk 0:04:18.9]} 20. Kc3 {[%clk 0:03:55.5]} 20... b5
{[%clk 0:04:09.8]} 21. Kb4 {[%clk 0:03:49.1]} 21... Rad8 {[%clk 0:04:07.2]} 22.
c3 {[%clk 0:03:46.5]} 22... Bf5 {[%clk 0:03:55.9]} 23. h3 {[%clk 0:03:40.9]}
23... Bc2 {[%clk 0:03:53.7]} 24. Rd2 {[%clk 0:03:37.1]} 24... Bb3 {[%clk
0:03:52.4]} 25. g4 {[%clk 0:03:26.8]} 25... e5 {[%clk 0:03:45.8]} 26. Rhd1
{[%clk 0:03:23]} 26... Bxd1 {[%clk 0:03:44.1]} 27. Rxd1 {[%clk 0:03:22.9]} 27...
exd4 {[%clk 0:03:42.9]} 28. cxd4 {[%clk 0:03:22.1]} 28... Rxd4+ {[%clk 0:03:42]}
29. Rxd4 {[%clk 0:03:21.5]} 29... Rxd4+ {[%clk 0:03:41.2]} 30. Kc3 {[%clk
0:03:20.9]} 30... Rc4+ {[%clk 0:03:38.2]} 31. Kd3 {[%clk 0:03:19.6]} 31... f6
{[%clk 0:03:37.4]} 32. Ke3 {[%clk 0:03:17]} 32... Kf7 {[%clk 0:03:36.5]} 33. f4
{[%clk 0:03:09]} 33... Rc3+ {[%clk 0:03:32]} 34. Kd4 {[%clk 0:03:07.6]} 34...
Rxa3 {[%clk 0:03:30]} 35. Kc5 {[%clk 0:03:07.1]} 35... Rxh3 {[%clk 0:03:27.4]}
36. Kxc6 {[%clk 0:03:05.6]} 36... Rxh6 {[%clk 0:03:26]} 37. Kxb5 {[%clk
0:03:01.8]} 37... a3 {[%clk 0:03:24.8]} 38. Ka4 {[%clk 0:03:01.2]} 38... a2
{[%clk 0:03:24]} 39. Kb3 {[%clk 0:02:58.4]} 39... a1=Q {[%clk 0:03:21.9]} 40. f5
{[%clk 0:02:57]} 40... gxf5 {[%clk 0:03:19]} 41. gxf5 {[%clk 0:02:56.9]} 41...
Rh3+ {[%clk 0:03:17.7]} 42. Kc2 {[%clk 0:02:52.2]} 42... Qa2+ {[%clk 0:03:15.9]}
43. Kc1 {[%clk 0:02:49.9]} 43... Rh1# {[%clk 0:03:15.5]} 0-1

[Event "Live Chess"]
[Site "Chess.com"]
[Date "2023.05.20"]
[Round "-"]
[White "stevochess11"]
[Black "Richardallis"]
[Result "0-1"]
[WhiteElo "1787"]
[BlackElo "1841"]
[TimeControl "300"]
[EndTime "13:14:45 PDT"]
[Termination "Richardallis won by resignation"]

1. d4 {[%clk 0:04:59]} 1... c5 {[%clk 0:04:58.7]} 2. Nf3 {[%clk 0:04:57.5]} 2...
cxd4 {[%clk 0:04:57.5]} 3. Nxd4 {[%clk 0:04:56.3]} 3... e5 {[%clk 0:04:56.8]} 4.
Nf5 {[%clk 0:04:54.8]} 4... d5 {[%clk 0:04:55]} 5. Ne3 {[%clk 0:04:53.6]} 5...
Be6 {[%clk 0:04:51.5]} 6. c4 {[%clk 0:04:51.6]} 6... d4 {[%clk 0:04:50.2]} 7.
Nd5 {[%clk 0:04:45.9]} 7... Bxd5 {[%clk 0:04:49.1]} 8. cxd5 {[%clk 0:04:45.8]}
8... Qxd5 {[%clk 0:04:48.4]} 9. Nd2 {[%clk 0:04:44.3]} 9... Nc6 {[%clk
0:04:46.8]} 10. e4 {[%clk 0:04:42.7]} 10... dxe3 {[%clk 0:04:45.1]} 11. fxe3
{[%clk 0:04:42]} 11... Bc5 {[%clk 0:04:43.4]} 12. Bc4 {[%clk 0:04:40.6]} 12...
Qd6 {[%clk 0:04:38]} 13. O-O {[%clk 0:04:39.1]} 13... Bxe3+ {[%clk 0:04:36]} 14.
Kh1 {[%clk 0:04:36]} 14... Nf6 {[%clk 0:04:34.9]} 15. Nf3 {[%clk 0:04:30]} 15...
Qxd1 {[%clk 0:04:32.9]} 16. Rxd1 {[%clk 0:04:29.9]} 16... Bxc1 {[%clk
0:04:32.1]} 17. Raxc1 {[%clk 0:04:28.2]} 17... O-O {[%clk 0:04:30.7]} 18. Ng5
{[%clk 0:04:25.6]} 18... h6 {[%clk 0:04:28.3]} 19. Nxf7 {[%clk 0:04:20]} 19...
Rxf7 {[%clk 0:04:26.9]} 20. Bxf7+ {[%clk 0:04:19.8]} 20... Kxf7 {[%clk
0:04:25.9]} 21. Rf1 {[%clk 0:04:16.1]} 21... Ke6 {[%clk 0:04:24.2]} 22. Rce1
{[%clk 0:04:14.1]} 22... Re8 {[%clk 0:04:21.3]} 23. h3 {[%clk 0:04:14]} 23... e4
{[%clk 0:04:19.4]} 24. g4 {[%clk 0:04:13.9]} 24... Nd4 {[%clk 0:04:16.3]} 25.
Re3 {[%clk 0:04:11.2]} 25... Kd5 {[%clk 0:04:14]} 26. Ra3 {[%clk 0:04:09.3]}
26... a6 {[%clk 0:04:11.9]} 27. Ra5+ {[%clk 0:04:07.1]} 27... Kd6 {[%clk
0:04:09]} 28. Rd1 {[%clk 0:04:05.5]} 28... e3 {[%clk 0:04:07.1]} 29. Rxd4+
{[%clk 0:03:55.8]} 29... Kc6 {[%clk 0:04:04.1]} 30. Rc4+ {[%clk 0:03:40.3]}
30... Kb6 {[%clk 0:04:02.7]} 31. Rf5 {[%clk 0:03:37.7]} 31... e2 {[%clk
0:04:01.4]} 32. Rb4+ {[%clk 0:03:34.8]} 32... Ka7 {[%clk 0:04:00.1]} 33. Rc5
{[%clk 0:03:30.5]} 33... e1=Q+ {[%clk 0:03:58.2]} 34. Kh2 {[%clk 0:03:30.4]}
34... Qxb4 {[%clk 0:03:57.3]} 0-1

[Event "Live Chess"]
[Site "Chess.com"]
[Date "2023.05.20"]
[Round "-"]
[White "Hacker_2009"]
[Black "ViktorTheCoolBoy"]
[Result "1/2-1/2"]
[WhiteElo "1913"]
[BlackElo "2502"]
[TimeControl "300"]
[EndTime "13:14:51 PDT"]
[Termination "Game drawn by repetition"]

1. d4 {[%clk 0:04:58.5]} 1... d5 {[%clk 0:04:58.8]} 2. Nf3 {[%clk 0:04:56.7]}
2... Nf6 {[%clk 0:04:56.7]} 3. e3 {[%clk 0:04:56.1]} 3... Bf5 {[%clk 0:04:50]}
4. c4 {[%clk 0:04:54.9]} 4... e6 {[%clk 0:04:48.7]} 5. Nc3 {[%clk 0:04:53.1]}
5... c6 {[%clk 0:04:45.5]} 6. cxd5 {[%clk 0:04:51.6]} 6... exd5 {[%clk
0:04:44.4]} 7. Be2 {[%clk 0:04:50.2]} 7... Bd6 {[%clk 0:04:42.7]} 8. O-O {[%clk
0:04:49.3]} 8... O-O {[%clk 0:04:41.9]} 9. b3 {[%clk 0:04:46.8]} 9... a5 {[%clk
0:04:39.8]} 10. Bb2 {[%clk 0:04:45.2]} 10... h6 {[%clk 0:04:39.2]} 11. Rc1
{[%clk 0:04:44.2]} 11... Nbd7 {[%clk 0:04:37.5]} 12. Na4 {[%clk 0:04:43.3]}
12... Qb8 {[%clk 0:04:31.3]} 13. Nc5 {[%clk 0:04:40.6]} 13... Re8 {[%clk
0:04:25.9]} 14. a4 {[%clk 0:04:34.9]} 14... b6 {[%clk 0:04:20.7]} 15. Nxd7
{[%clk 0:04:29.1]} 15... Bxd7 {[%clk 0:04:20.6]} 16. Ne5 {[%clk 0:04:27.5]}
16... Bxe5 {[%clk 0:04:17.1]} 17. dxe5 {[%clk 0:04:26.5]} 17... Ne4 {[%clk
0:04:14.5]} 18. Bf3 {[%clk 0:04:25.8]} 18... Nc5 {[%clk 0:04:13]} 19. Bd4 {[%clk
0:04:22.2]} 19... Ne6 {[%clk 0:04:10.1]} 20. Bb2 {[%clk 0:04:19.5]} 20... b5
{[%clk 0:04:09.1]} 21. Rb1 {[%clk 0:04:10.2]} 21... Ng5 {[%clk 0:03:49.8]} 22.
Be2 {[%clk 0:04:05.8]} 22... b4 {[%clk 0:03:46.3]} 23. Rc1 {[%clk 0:04:00.8]}
23... Ne6 {[%clk 0:03:41]} 24. f4 {[%clk 0:03:58.6]} 24... Qb6 {[%clk
0:03:35.3]} 25. Qd3 {[%clk 0:03:51.1]} 25... Bc8 {[%clk 0:03:31.3]} 26. Kh1
{[%clk 0:03:48]} 26... Ba6 {[%clk 0:03:30.3]} 27. Qd2 {[%clk 0:03:45.6]} 27...
Bxe2 {[%clk 0:03:29.2]} 28. Qxe2 {[%clk 0:03:44.8]} 28... c5 {[%clk 0:03:28.4]}
29. Rfd1 {[%clk 0:03:42.5]} 29... Rad8 {[%clk 0:03:26.7]} 30. f5 {[%clk
0:03:38.1]} 30... Ng5 {[%clk 0:03:25.6]} 31. Qg4 {[%clk 0:03:35.2]} 31... Ne4
{[%clk 0:03:23.4]} 32. Rf1 {[%clk 0:03:30.6]} 32... Kh8 {[%clk 0:03:05.4]} 33.
e6 {[%clk 0:03:26.1]} 33... f6 {[%clk 0:03:04.6]} 34. Qg6 {[%clk 0:03:21.6]}
34... c4 {[%clk 0:02:55.1]} 35. Bd4 {[%clk 0:03:18]} 35... Qc6 {[%clk
0:02:51.1]} 36. bxc4 {[%clk 0:03:15.6]} 36... dxc4 {[%clk 0:02:49.8]} 37. Rf4
{[%clk 0:03:11.8]} 37... Qd5 {[%clk 0:02:45.8]} 38. Rxe4 {[%clk 0:03:04.3]}
38... Qxe4 {[%clk 0:02:44.2]} 39. Bxf6 {[%clk 0:03:03.9]} 39... gxf6 {[%clk
0:02:33.3]} 40. Qxh6+ {[%clk 0:03:01.8]} 40... Kg8 {[%clk 0:02:31.5]} 41. Qg6+
{[%clk 0:03:01.4]} 41... Kh8 {[%clk 0:02:30.8]} 42. Qh6+ {[%clk 0:02:59.7]}
42... Kg8 {[%clk 0:02:30.1]} 43. Qg6+ {[%clk 0:02:58.7]} 43... Kh8 {[%clk
0:02:29.6]} 44. Qh6+ {[%clk 0:02:58.1]} 1/2-1/2

[Event "Live Chess"]
[Site "Chess.com"]
[Date "2023.05.20"]
[Round "-"]
[White "MarkLim1"]
[Black "KeithArkell"]
[Result "0-1"]
[WhiteElo "1661"]
[BlackElo "2613"]
[TimeControl "300"]
[EndTime "13:14:56 PDT"]
[Termination "KeithArkell won by resignation"]

1. d4 {[%clk 0:04:58.3]} 1... e6 {[%clk 0:04:59.1]} 2. Nf3 {[%clk 0:04:57.5]}
2... Nf6 {[%clk 0:04:58.2]} 3. e3 {[%clk 0:04:56.8]} 3... c5 {[%clk 0:04:57.7]}
4. Bd3 {[%clk 0:04:55.3]} 4... cxd4 {[%clk 0:04:57.2]} 5. exd4 {[%clk
0:04:54.5]} 5... Be7 {[%clk 0:04:56.9]} 6. O-O {[%clk 0:04:53.6]} 6... b6 {[%clk
0:04:56.7]} 7. c4 {[%clk 0:04:52.8]} 7... O-O {[%clk 0:04:55.7]} 8. Nc3 {[%clk
0:04:52.1]} 8... d5 {[%clk 0:04:55.1]} 9. cxd5 {[%clk 0:04:50.8]} 9... Nxd5
{[%clk 0:04:53.9]} 10. Ne5 {[%clk 0:04:49.9]} 10... Bb7 {[%clk 0:04:52.6]} 11.
Qg4 {[%clk 0:04:48.3]} 11... Nd7 {[%clk 0:04:26.7]} 12. Bh6 {[%clk 0:04:34.5]}
12... Bf6 {[%clk 0:04:25.6]} 13. Rad1 {[%clk 0:04:11]} 13... Kh8 {[%clk
0:04:10.3]} 14. Qe4 {[%clk 0:04:03.1]} 14... g6 {[%clk 0:04:04.1]} 15. Bxf8
{[%clk 0:04:00.1]} 15... Bxe5 {[%clk 0:04:00]} 16. dxe5 {[%clk 0:03:47.6]} 16...
Qxf8 {[%clk 0:03:59]} 17. Nxd5 {[%clk 0:03:40.5]} 17... Bxd5 {[%clk 0:03:58]}
18. Qe3 {[%clk 0:03:39.5]} 18... Qc5 {[%clk 0:03:41.3]} 19. Qxc5 {[%clk
0:03:36.2]} 19... Nxc5 {[%clk 0:03:40.4]} 20. b3 {[%clk 0:03:32.7]} 20... a5
{[%clk 0:03:39.5]} 21. Bc4 {[%clk 0:03:15.7]} 21... Bxc4 {[%clk 0:03:34.8]} 22.
bxc4 {[%clk 0:03:14.7]} 22... Rc8 {[%clk 0:03:23.5]} 23. Rd6 {[%clk 0:02:59.9]}
23... Na4 {[%clk 0:03:20.5]} 24. Rc1 {[%clk 0:02:54.8]} 24... b5 {[%clk
0:03:18.6]} 25. Ra6 {[%clk 0:02:42.4]} 25... bxc4 {[%clk 0:03:05.8]} 26. Rxa5
{[%clk 0:02:38.4]} 26... Nb2 {[%clk 0:03:04.9]} 27. Ra3 {[%clk 0:02:26.7]} 27...
Rc5 {[%clk 0:02:44.6]} 28. f4 {[%clk 0:02:22]} 28... Kg7 {[%clk 0:02:41.1]} 29.
Rac3 {[%clk 0:02:10]} 29... Nd3 {[%clk 0:02:34.8]} 30. Rxc4 {[%clk 0:01:49.6]}
30... Ra5 {[%clk 0:02:33.7]} 31. R1c2 {[%clk 0:01:44.8]} 31... g5 {[%clk
0:02:29.9]} 32. g3 {[%clk 0:01:38.7]} 32... gxf4 {[%clk 0:02:29.1]} 33. gxf4
{[%clk 0:01:37.7]} 33... Kg6 {[%clk 0:02:28.5]} 34. Kf1 {[%clk 0:01:35.2]} 34...
Kf5 {[%clk 0:02:24.7]} 35. Rc7 {[%clk 0:01:30.4]} 35... Kxf4 {[%clk 0:02:13.7]}
36. Rxf7+ {[%clk 0:01:27]} 36... Kxe5 {[%clk 0:02:12.6]} 37. Rxh7 {[%clk
0:01:23.2]} 37... Nf4 {[%clk 0:02:05.5]} 38. Rg7 {[%clk 0:01:16.4]} 38... Kf6
{[%clk 0:01:57.3]} 39. Rgc7 {[%clk 0:01:12.6]} 39... e5 {[%clk 0:01:54.3]} 40.
R7c5 {[%clk 0:01:06.4]} 40... Ra3 {[%clk 0:01:51.7]} 41. R5c3 {[%clk 0:01:02.6]}
41... Ra8 {[%clk 0:01:50.5]} 42. a3 {[%clk 0:00:56.7]} 42... Kf5 {[%clk
0:01:50]} 43. Rf2 {[%clk 0:00:48.8]} 43... Rb8 {[%clk 0:01:47.5]} 44. Rfc2
{[%clk 0:00:46.3]} 44... Rb1+ {[%clk 0:01:45.7]} 45. Kf2 {[%clk 0:00:45.3]}
45... Rh1 {[%clk 0:01:43.6]} 46. Kg3 {[%clk 0:00:44]} 46... Rg1+ {[%clk
0:01:42.9]} 47. Kf3 {[%clk 0:00:38.6]} 47... e4+ {[%clk 0:01:37]} 48. Ke3 {[%clk
0:00:33.8]} 48... Nd5+ {[%clk 0:01:35.6]} 49. Kd4 {[%clk 0:00:32.4]} 49... Rd1+
{[%clk 0:01:31.1]} 50. Kc4 {[%clk 0:00:29.2]} 50... Nxc3 {[%clk 0:01:30.3]} 51.
Kxc3 {[%clk 0:00:28.1]} 51... Kf4 {[%clk 0:01:29.5]} 52. h4 {[%clk 0:00:24.3]}
52... e3 {[%clk 0:01:28.7]} 53. Re2 {[%clk 0:00:21.2]} 53... Kf3 {[%clk
0:01:27.6]} 54. Rh2 {[%clk 0:00:20.1]} 54... e2 {[%clk 0:01:26.9]} 55. Rh3+
{[%clk 0:00:19]} 55... Kg4 {[%clk 0:01:24.8]} 56. Rh2 {[%clk 0:00:05.5]} 56...
e1=Q+ {[%clk 0:01:23.8]} 0-1

[Event "Live Chess"]
[Site "Chess.com"]
[Date "2023.05.20"]
[Round "-"]
[White "LL220284LL"]
[Black "LozzaLoaf"]
[Result "1-0"]
[WhiteElo "2393"]
[BlackElo "241"]
[TimeControl "300"]
[EndTime "13:14:59 PDT"]
[Termination "LL220284LL won by checkmate"]

1. Nf3 {[%clk 0:04:58.2]} 1... e5 {[%clk 0:04:57.3]} 2. Nxe5 {[%clk 0:04:56.6]}
2... d6 {[%clk 0:04:57.2]} 3. Nf3 {[%clk 0:04:49.3]} 3... c5 {[%clk 0:04:53.8]}
4. d4 {[%clk 0:04:48]} 4... cxd4 {[%clk 0:04:52.4]} 5. Nxd4 {[%clk 0:04:47.6]}
5... Nc6 {[%clk 0:04:50.1]} 6. Nc3 {[%clk 0:04:47]} 6... Nxd4 {[%clk 0:04:49]}
7. Qxd4 {[%clk 0:04:46.9]} 7... Qd7 {[%clk 0:04:46.2]} 8. g3 {[%clk 0:04:45.7]}
8... b6 {[%clk 0:04:43.9]} 9. Bg2 {[%clk 0:04:44.7]} 9... a5 {[%clk 0:04:41.7]}
10. Bxa8 {[%clk 0:04:43.3]} 10... Bb7 {[%clk 0:04:40.1]} 11. Bxb7 {[%clk
0:04:41.8]} 11... Qxb7 {[%clk 0:04:39]} 12. O-O {[%clk 0:04:41.7]} 12... Nf6
{[%clk 0:04:35.8]} 13. Bf4 {[%clk 0:04:40.4]} 13... Ng4 {[%clk 0:04:33.1]} 14.
Nb5 {[%clk 0:04:35.2]} 14... Be7 {[%clk 0:04:19.7]} 15. Nxd6+ {[%clk 0:04:33.5]}
15... Bxd6 {[%clk 0:04:18.5]} 16. Qxd6 {[%clk 0:04:33.1]} 16... g6 {[%clk
0:04:12]} 17. Rad1 {[%clk 0:04:29.4]} 17... f5 {[%clk 0:04:06.9]} 18. Qe6+
{[%clk 0:04:25.7]} 18... Qe7 {[%clk 0:04:04.8]} 19. Qc8+ {[%clk 0:04:24.3]}
19... Qd8 {[%clk 0:04:03.2]} 20. Rxd8+ {[%clk 0:04:22.2]} 20... Kf7 {[%clk
0:04:00.5]} 21. Qd7+ {[%clk 0:04:21.7]} 21... Kf6 {[%clk 0:03:59.2]} 22. Qd6+
{[%clk 0:04:20.7]} 22... Kg7 {[%clk 0:03:56.3]} 23. Rd7+ {[%clk 0:04:19.9]}
23... Kg8 {[%clk 0:03:52.2]} 24. Qe6+ {[%clk 0:04:19.8]} 24... Kf8 {[%clk
0:03:50.9]} 25. Qf7# {[%clk 0:04:19.7]} 1-0

[Event "Live Chess"]
[Site "Chess.com"]
[Date "2023.05.20"]
[Round "-"]
[White "EdvancedChess"]
[Black "JoshMcK"]
[Result "0-1"]
[WhiteElo "1886"]
[BlackElo "1593"]
[TimeControl "300"]
[EndTime "13:15:13 PDT"]
[Termination "JoshMcK won by resignation"]

1. e4 {[%clk 0:04:59.8]} 1... c6 {[%clk 0:04:57.5]} 2. Nf3 {[%clk 0:04:59.4]}
2... d5 {[%clk 0:04:57]} 3. exd5 {[%clk 0:04:59.3]} 3... cxd5 {[%clk 0:04:56.9]}
4. d4 {[%clk 0:04:59.2]} 4... Nf6 {[%clk 0:04:56]} 5. Bd3 {[%clk 0:04:59.1]}
5... Bg4 {[%clk 0:04:54.4]} 6. c3 {[%clk 0:04:59]} 6... e6 {[%clk 0:04:53.4]} 7.
O-O {[%clk 0:04:58.9]} 7... Be7 {[%clk 0:04:52.3]} 8. Bg5 {[%clk 0:04:58.4]}
8... O-O {[%clk 0:04:51.5]} 9. Nbd2 {[%clk 0:04:57.9]} 9... Nc6 {[%clk
0:04:47.8]} 10. Qb3 {[%clk 0:04:57.2]} 10... b6 {[%clk 0:04:43.3]} 11. Rfe1
{[%clk 0:04:52.7]} 11... Qd6 {[%clk 0:04:38.1]} 12. Bb5 {[%clk 0:04:40]} 12...
Rac8 {[%clk 0:04:32.3]} 13. Ne5 {[%clk 0:04:38]} 13... Nxe5 {[%clk 0:04:28.8]}
14. dxe5 {[%clk 0:04:36]} 14... Qc7 {[%clk 0:04:27.4]} 15. exf6 {[%clk
0:04:31.8]} 15... Bxf6 {[%clk 0:04:25]} 16. Bxf6 {[%clk 0:04:31]} 16... gxf6
{[%clk 0:04:23.6]} 17. Be2 {[%clk 0:04:27.7]} 17... Bxe2 {[%clk 0:04:22.1]} 18.
Rxe2 {[%clk 0:04:26.7]} 18... Qf4 {[%clk 0:04:19.3]} 19. Nf3 {[%clk 0:04:25]}
19... Kh8 {[%clk 0:04:17.6]} 20. Rae1 {[%clk 0:04:23.3]} 20... Rg8 {[%clk
0:04:16.4]} 21. Kh1 {[%clk 0:04:21.9]} 21... Qg4 {[%clk 0:04:14.9]} 22. Rg1
{[%clk 0:04:14.8]} 22... e5 {[%clk 0:04:10.7]} 23. Qxd5 {[%clk 0:04:11.9]} 23...
Rcd8 {[%clk 0:04:07.6]} 24. Qe4 {[%clk 0:04:10.5]} 24... Qxe4 {[%clk 0:04:04.2]}
25. Rxe4 {[%clk 0:04:09.5]} 25... Rd7 {[%clk 0:03:59.5]} 26. Rge1 {[%clk
0:04:08]} 26... Rgd8 {[%clk 0:03:57.2]} 27. h3 {[%clk 0:04:06.6]} 27... Rd1
{[%clk 0:03:54.9]} 28. Nh4 {[%clk 0:04:05.6]} 28... Rxe1+ {[%clk 0:03:50.6]} 29.
Rxe1 {[%clk 0:04:04.1]} 29... Rd2 {[%clk 0:03:50.2]} 30. Rb1 {[%clk 0:03:58.4]}
30... Rxf2 {[%clk 0:03:49.2]} 31. Nf3 {[%clk 0:03:57.2]} 31... e4 {[%clk
0:03:45.9]} 32. Kg1 {[%clk 0:03:55.5]} 32... e3 {[%clk 0:03:44.8]} 33. Ne1
{[%clk 0:03:41.8]} 33... Rd2 {[%clk 0:03:39.9]} 34. Nf3 {[%clk 0:03:38.6]} 34...
Rc2 {[%clk 0:03:36.9]} 35. Nd4 {[%clk 0:03:33.9]} 35... Rd2 {[%clk 0:03:35]} 36.
Nc6 {[%clk 0:03:24.4]} 36... e2 {[%clk 0:03:32.6]} 37. Kf2 {[%clk 0:03:18.8]}
37... Rd1 {[%clk 0:03:31.5]} 38. Kxe2 {[%clk 0:03:12.7]} 38... Rxb1 {[%clk
0:03:29.7]} 39. Nxa7 {[%clk 0:03:12.6]} 39... Rxb2+ {[%clk 0:03:28.8]} 40. Kf3
{[%clk 0:03:12.2]} 40... Rxa2 {[%clk 0:03:28.1]} 41. Nc6 {[%clk 0:03:11.8]}
41... Rc2 {[%clk 0:03:24.9]} 42. Nd8 {[%clk 0:03:09.8]} 42... Rxc3+ {[%clk
0:03:22.7]} 43. Kf4 {[%clk 0:03:09.7]} 43... Kg7 {[%clk 0:03:18.1]} 0-1

[Event "Live Chess"]
[Site "Chess.com"]
[Date "2023.05.20"]
[Round "-"]
[White "NAZRIZ1977"]
[Black "gmnorfolk"]
[Result "0-1"]
[WhiteElo "2057"]
[BlackElo "2064"]
[TimeControl "300"]
[EndTime "13:15:29 PDT"]
[Termination "gmnorfolk won by resignation"]

1. d4 {[%clk 0:04:57.3]} 1... Nf6 {[%clk 0:04:56.8]} 2. Nc3 {[%clk 0:04:56.9]}
2... d5 {[%clk 0:04:37.6]} 3. Bf4 {[%clk 0:04:56.2]} 3... e6 {[%clk 0:04:33.8]}
4. e3 {[%clk 0:04:54.7]} 4... c5 {[%clk 0:04:30.7]} 5. Nb5 {[%clk 0:04:53.7]}
5... Na6 {[%clk 0:04:27.1]} 6. c3 {[%clk 0:04:53.2]} 6... cxd4 {[%clk
0:04:23.7]} 7. exd4 {[%clk 0:04:52]} 7... Be7 {[%clk 0:04:22.1]} 8. a4 {[%clk
0:04:51.4]} 8... O-O {[%clk 0:04:20.2]} 9. Bd3 {[%clk 0:04:50.9]} 9... Bd7
{[%clk 0:04:13.8]} 10. Nf3 {[%clk 0:04:49.7]} 10... Ne4 {[%clk 0:04:11.6]} 11.
O-O {[%clk 0:04:46.6]} 11... Bc6 {[%clk 0:03:58.2]} 12. Re1 {[%clk 0:04:45.1]}
12... Nd6 {[%clk 0:03:57.1]} 13. Ne5 {[%clk 0:04:42.3]} 13... Be8 {[%clk
0:03:53.6]} 14. Re3 {[%clk 0:04:40.8]} 14... Nxb5 {[%clk 0:03:45.3]} 15. axb5
{[%clk 0:04:39.6]} 15... Nc7 {[%clk 0:03:44.3]} 16. Rh3 {[%clk 0:04:38.9]} 16...
g6 {[%clk 0:03:43]} 17. Bh6 {[%clk 0:04:33.8]} 17... Bxb5 {[%clk 0:03:36.5]} 18.
Bxf8 {[%clk 0:04:30.9]} 18... Bxf8 {[%clk 0:03:35.6]} 19. Qf3 {[%clk 0:04:20.9]}
19... Be8 {[%clk 0:03:30.6]} 20. Ng4 {[%clk 0:04:09.3]} 20... Bg7 {[%clk
0:03:27.5]} 21. Nh6+ {[%clk 0:04:07.6]} 21... Kf8 {[%clk 0:03:23.8]} 22. Re1
{[%clk 0:04:06.3]} 22... Qg5 {[%clk 0:03:01.2]} 23. Ng4 {[%clk 0:04:00.5]} 23...
Kg8 {[%clk 0:02:48.2]} 24. Ne5 {[%clk 0:03:56.6]} 24... Qe7 {[%clk 0:02:43.1]}
25. Qg3 {[%clk 0:03:51]} 25... f6 {[%clk 0:02:39.5]} 26. Nf3 {[%clk 0:03:45.6]}
26... Bf7 {[%clk 0:02:34.8]} 27. Qh4 {[%clk 0:03:44.2]} 27... h5 {[%clk
0:02:17.5]} 28. g4 {[%clk 0:03:39.2]} 28... g5 {[%clk 0:02:15.9]} 29. Qg3 {[%clk
0:03:30.4]} 29... h4 {[%clk 0:02:12.9]} 30. Nxh4 {[%clk 0:03:21.3]} 30... gxh4
{[%clk 0:02:11]} 31. Qxh4 {[%clk 0:03:21.2]} 31... a5 {[%clk 0:02:03.4]} 32. f4
{[%clk 0:03:11.7]} 32... Qd6 {[%clk 0:01:55.1]} 33. g5 {[%clk 0:03:06.6]} 33...
f5 {[%clk 0:01:50.8]} 34. Qh7+ {[%clk 0:03:02.7]} 34... Kf8 {[%clk 0:01:48.3]}
35. g6 {[%clk 0:03:02.3]} 35... Bg8 {[%clk 0:01:46.7]} 36. Qh5 {[%clk
0:02:55.3]} 36... Qd7 {[%clk 0:01:43]} 37. Rhe3 {[%clk 0:02:50.1]} 37... a4
{[%clk 0:01:35.9]} 38. Qg5 {[%clk 0:02:43.1]} 38... Qd8 {[%clk 0:01:21.9]} 39.
Qg3 {[%clk 0:02:30.9]} 39... a3 {[%clk 0:01:19.3]} 40. bxa3 {[%clk 0:02:30.4]}
40... Rxa3 {[%clk 0:01:17.8]} 41. Bb1 {[%clk 0:02:27.1]} 41... b5 {[%clk
0:01:12]} 42. Rd1 {[%clk 0:02:07.3]} 42... b4 {[%clk 0:01:09.5]} 43. cxb4 {[%clk
0:02:04.8]} 43... Rxe3 {[%clk 0:01:08]} 44. Qxe3 {[%clk 0:02:04.6]} 44... Nb5
{[%clk 0:01:06.9]} 45. Kg2 {[%clk 0:01:57.1]} 45... Qb6 {[%clk 0:00:58.8]} 46.
h4 {[%clk 0:01:51.1]} 46... Bxd4 {[%clk 0:00:51.2]} 47. Qd2 {[%clk 0:01:40.8]}
47... Be3 {[%clk 0:00:47.7]} 48. Qa2 {[%clk 0:01:35.4]} 48... Bxf4 {[%clk
0:00:41.6]} 49. Bd3 {[%clk 0:01:29.9]} 49... Nc3 {[%clk 0:00:36.8]} 50. Qa8+
{[%clk 0:01:28.4]} 50... Kg7 {[%clk 0:00:35.4]} 51. Re1 {[%clk 0:01:20.1]} 51...
Qxb4 {[%clk 0:00:28.6]} 52. h5 {[%clk 0:01:16.4]} 52... Ne4 {[%clk 0:00:24.3]}
53. Qa7+ {[%clk 0:01:10.6]} 53... Kh6 {[%clk 0:00:21.9]} 54. Qa1 {[%clk
0:01:06.1]} 54... Qd2+ {[%clk 0:00:19.4]} 55. Be2 {[%clk 0:00:56.5]} 55... Qe3
{[%clk 0:00:18.5]} 56. Qh8+ {[%clk 0:00:55.5]} 56... Kg5 {[%clk 0:00:16.7]} 0-1

[Event "Live Chess"]
[Site "Chess.com"]
[Date "2023.05.20"]
[Round "-"]
[White "ViktorTheCoolBoy"]
[Black "whitedjohn"]
[Result "1-0"]
[WhiteElo "2502"]
[BlackElo "1645"]
[TimeControl "300"]
[EndTime "13:15:42 PDT"]
[Termination "ViktorTheCoolBoy won by resignation"]

1. d4 {[%clk 0:04:57.9]} 1... Nf6 {[%clk 0:04:55.9]} 2. c4 {[%clk 0:04:56.8]}
2... c5 {[%clk 0:04:55.2]} 3. d5 {[%clk 0:04:54.9]} 3... e6 {[%clk 0:04:54.8]}
4. Nc3 {[%clk 0:04:53.7]} 4... exd5 {[%clk 0:04:54.3]} 5. cxd5 {[%clk
0:04:53.6]} 5... d6 {[%clk 0:04:52.6]} 6. e4 {[%clk 0:04:52.6]} 6... g6 {[%clk
0:04:51.7]} 7. Nf3 {[%clk 0:04:51.2]} 7... Bg7 {[%clk 0:04:51]} 8. h3 {[%clk
0:04:50.7]} 8... O-O {[%clk 0:04:49.5]} 9. Bd3 {[%clk 0:04:50.2]} 9... a6 {[%clk
0:04:47.3]} 10. a4 {[%clk 0:04:49.6]} 10... b6 {[%clk 0:04:46.4]} 11. O-O {[%clk
0:04:48.5]} 11... Nbd7 {[%clk 0:04:44.2]} 12. Re1 {[%clk 0:04:47.9]} 12... Re8
{[%clk 0:04:40.9]} 13. Bf4 {[%clk 0:04:47.1]} 13... Nh5 {[%clk 0:04:37.8]} 14.
Bxd6 {[%clk 0:04:43.9]} 1-0